[Event "Titled Tuesday Blitz September 27 Early 2022"]
[White "Rios Escobar, Adan"]
[Black "Curtis, John"]
[WhiteFideId "3403645"]
[BlackFideId "3200256"]
[WhiteElo "2327"]
[BlackElo "2203"]
[Result "1-0"]
[Round "06"]
[TimeControl "180+1"]
[Date "2022.09.27"]
[WhiteClock "0:00:30"]
[BlackClock "0:00:01"]

1. d4 {[%clk 0:02:57]}  Nf6 {[%clk 0:02:59]} 2. g3 {[%clk 0:02:57]}  d5 {[%clk 0:02:54]} 3. Nf3 {[%clk 0:02:54]}  c5 {[%clk 0:02:51]} 4. Bg2 {[%clk 0:02:54]}  cxd4 {[%clk 0:02:47]} 5. O-O {[%clk 0:02:52]}  Nc6 {[%clk 0:02:46]} 6. Nxd4 {[%clk 0:02:52]}  e5 {[%clk 0:02:36]} 7. Nxc6 {[%clk 0:02:52]}  bxc6 {[%clk 0:02:36]} 8. c4 {[%clk 0:02:52]}  Be6 {[%clk 0:02:36]} 9. Nc3 {[%clk 0:02:51]}  h6 {[%clk 0:02:09]} 10. Qa4 {[%clk 0:02:38]}  Qd7 {[%clk 0:01:46]} 11. Rd1 {[%clk 0:02:37]}  Rd8 {[%clk 0:01:09]} 12. Be3 {[%clk 0:02:02]}  Be7 {[%clk 0:01:07]} 13. Qxa7 {[%clk 0:01:55]}  d4 {[%clk 0:00:54]} 14. Qa6 {[%clk 0:01:42]}  Qc8 {[%clk 0:00:41]} 15. Qxc6+ {[%clk 0:01:23]}  Qxc6 {[%clk 0:00:35]} 16. Bxc6+ {[%clk 0:01:24]}  Kf8 {[%clk 0:00:35]} 17. Bxd4 {[%clk 0:01:13]}  exd4 {[%clk 0:00:32]} 18. Nb5 {[%clk 0:01:00]}  Bxc4 {[%clk 0:00:19]} 19. Nxd4 {[%clk 0:00:59]}  g6 {[%clk 0:00:10]} 20. b4 {[%clk 0:00:58]}  Kg7 {[%clk 0:00:09]} 21. b5 {[%clk 0:00:57]}  Bc5 {[%clk 0:00:10]} 22. e3 {[%clk 0:00:55]}  Rd6 {[%clk 0:00:04]} 23. Rac1 {[%clk 0:00:54]}  Bxd4 {[%clk 0:00:05]} 24. Rxc4 {[%clk 0:00:53]}  Be5 {[%clk 0:00:04]} 25. Rxd6 {[%clk 0:00:47]}  Bxd6 {[%clk 0:00:04]} 26. b6 {[%clk 0:00:48]}  Bb8 {[%clk 0:00:03]} 27. a4 {[%clk 0:00:46]}  Ne8 {[%clk 0:00:03]} 28. Bxe8 {[%clk 0:00:34]}  Rxe8 {[%clk 0:00:02]} 29. a5 {[%clk 0:00:35]}  Re5 {[%clk 0:00:01]} 30. a6 {[%clk 0:00:32]}  Rb5 {[%clk 0:00:01]} 31. a7 {[%clk 0:00:30]} 1-0


[Site "https://www.chess.com"]

[Event "Titled Tuesday Blitz September 27 Early 2022"]
[White "Rosenberg, Evan S"]
[Black "Manukian, Artak"]
[WhiteFideId "2019299"]
[BlackFideId "13301373"]
[WhiteElo "2364"]
[BlackElo "2506"]
[Result "0-1"]
[Round "06"]
[TimeControl "180+1"]
[Date "2022.09.27"]
[WhiteClock "0:01:07"]
[BlackClock "0:00:22"]

1. Nf3 {[%clk 0:03:00]}  g6 {[%clk 0:02:59]} 2. e4 {[%clk 0:03:00]}  Bg7 {[%clk 0:03:00]} 3. d4 {[%clk 0:03:00]}  d6 {[%clk 0:03:00]} 4. Nc3 {[%clk 0:03:00]}  Nf6 {[%clk 0:03:00]} 5. h3 {[%clk 0:03:00]}  O-O {[%clk 0:03:00]} 6. Be3 {[%clk 0:02:53]}  Nbd7 {[%clk 0:02:56]} 7. e5 {[%clk 0:02:50]}  Ne8 {[%clk 0:02:53]} 8. e6 {[%clk 0:02:50]}  fxe6 {[%clk 0:02:52]} 9. Ng5 {[%clk 0:02:50]}  Ndf6 {[%clk 0:02:48]} 10. Bc4 {[%clk 0:02:48]}  d5 {[%clk 0:02:24]} 11. Bd3 {[%clk 0:02:47]}  c5 {[%clk 0:02:21]} 12. Qd2 {[%clk 0:02:11]}  c4 {[%clk 0:02:10]} 13. Be2 {[%clk 0:02:11]}  Nd6 {[%clk 0:01:58]} 14. h4 {[%clk 0:02:05]}  b5 {[%clk 0:01:54]} 15. h5 {[%clk 0:02:04]}  h6 {[%clk 0:01:47]} 16. Nxe6 {[%clk 0:01:54]}  Bxe6 {[%clk 0:01:44]} 17. Bxh6 {[%clk 0:01:55]}  Nfe4 {[%clk 0:01:35]} 18. Nxe4 {[%clk 0:01:49]}  Nxe4 {[%clk 0:01:36]} 19. Qe3 {[%clk 0:01:49]}  Qd6 {[%clk 0:01:25]} 20. Bxg7 {[%clk 0:01:49]}  Kxg7 {[%clk 0:01:24]} 21. g3 {[%clk 0:01:24]}  Qb4+ {[%clk 0:01:18]} 22. c3 {[%clk 0:01:24]}  Qxb2 {[%clk 0:01:15]} 23. O-O {[%clk 0:01:24]}  Qd2 {[%clk 0:01:00]} 24. h6+ {[%clk 0:01:18]}  Kh7 {[%clk 0:01:00]} 25. Kg2 {[%clk 0:01:14]}  Qxe3 {[%clk 0:00:58]} 26. fxe3 {[%clk 0:01:15]}  Nxc3 {[%clk 0:00:58]} 27. Bf3 {[%clk 0:01:15]}  Bf5 {[%clk 0:00:49]} 28. Rac1 {[%clk 0:01:13]}  b4 {[%clk 0:00:49]} 29. Rxc3 {[%clk 0:01:12]}  bxc3 {[%clk 0:00:48]} 30. Bxd5 {[%clk 0:01:13]}  Rab8 {[%clk 0:00:39]} 31. e4 {[%clk 0:01:11]}  Bg4 {[%clk 0:00:36]} 32. Rc1 {[%clk 0:01:04]}  Rb2+ {[%clk 0:00:33]} 33. Kg1 {[%clk 0:01:04]}  c2 {[%clk 0:00:31]} 34. e5 {[%clk 0:01:03]}  Rb1 {[%clk 0:00:31]} 35. Kg2 {[%clk 0:01:02]}  Rxc1 {[%clk 0:00:31]} 36. Be4 {[%clk 0:01:03]}  Bf5 {[%clk 0:00:28]} 37. Bxc2 {[%clk 0:01:03]}  Rxc2+ {[%clk 0:00:28]} 38. Kf3 {[%clk 0:01:03]}  Kxh6 {[%clk 0:00:25]} 39. Ke3 {[%clk 0:01:04]}  c3 {[%clk 0:00:24]} 40. d5 {[%clk 0:01:05]}  Rd2 {[%clk 0:00:24]} 41. d6 {[%clk 0:01:05]}  exd6 {[%clk 0:00:24]} 42. exd6 {[%clk 0:01:05]}  Rxd6 {[%clk 0:00:25]} 43. g4 {[%clk 0:01:05]}  Re8+ {[%clk 0:00:25]} 44. Kf4 {[%clk 0:01:05]}  c2 {[%clk 0:00:25]} 45. Kg3 {[%clk 0:01:06]}  Rd3+ {[%clk 0:00:22]} 46. Kh4 {[%clk 0:01:07]}  g5# {[%clk 0:00:22]} 0-1


[Site "https://www.chess.com"]

[Event "Titled Tuesday Blitz September 27 Early 2022"]
[White "Rustemov, Alexander"]
[Black "Sethuraman, S.P."]
[WhiteFideId "4119002"]
[BlackFideId "5021596"]
[WhiteElo "2823"]
[BlackElo "2425"]
[Result "1-0"]
[Round "06"]
[TimeControl "180+1"]
[Date "2022.09.27"]
[WhiteClock "0:00:58"]
[BlackClock "0:00:08"]

1. d4 {[%clk 0:03:00]}  d5 {[%clk 0:02:59]} 2. c4 {[%clk 0:03:01]}  c6 {[%clk 0:03:00]} 3. Nc3 {[%clk 0:03:01]}  Nf6 {[%clk 0:03:00]} 4. e3 {[%clk 0:03:02]}  e6 {[%clk 0:03:00]} 5. Nf3 {[%clk 0:03:02]}  Nbd7 {[%clk 0:03:00]} 6. Qc2 {[%clk 0:03:03]}  Bd6 {[%clk 0:03:01]} 7. b3 {[%clk 0:03:04]}  O-O {[%clk 0:03:00]} 8. Be2 {[%clk 0:03:04]}  e5 {[%clk 0:02:58]} 9. cxd5 {[%clk 0:03:03]}  cxd5 {[%clk 0:02:59]} 10. Nb5 {[%clk 0:03:03]}  Bb4+ {[%clk 0:02:58]} 11. Bd2 {[%clk 0:03:03]}  Bxd2+ {[%clk 0:02:55]} 12. Nxd2 {[%clk 0:03:04]}  e4 {[%clk 0:02:50]} 13. Qc7 {[%clk 0:03:02]}  a6 {[%clk 0:02:40]} 14. Qxd8 {[%clk 0:03:00]}  Rxd8 {[%clk 0:02:41]} 15. Nc3 {[%clk 0:02:56]}  Nb6 {[%clk 0:02:35]} 16. f3 {[%clk 0:02:48]}  exf3 {[%clk 0:02:34]} 17. gxf3 {[%clk 0:02:47]}  Be6 {[%clk 0:02:34]} 18. Kf2 {[%clk 0:02:46]}  Rac8 {[%clk 0:02:34]} 19. Rhc1 {[%clk 0:02:45]}  Rc6 {[%clk 0:02:34]} 20. Na4 {[%clk 0:02:17]}  Rxc1 {[%clk 0:02:07]} 21. Rxc1 {[%clk 0:02:15]}  Nxa4 {[%clk 0:02:07]} 22. bxa4 {[%clk 0:02:16]}  Rc8 {[%clk 0:01:59]} 23. Rxc8+ {[%clk 0:02:05]}  Bxc8 {[%clk 0:02:00]} 24. a5 {[%clk 0:02:04]}  Kf8 {[%clk 0:02:00]} 25. Nb3 {[%clk 0:02:02]}  Ke7 {[%clk 0:01:59]} 26. h4 {[%clk 0:01:51]}  g6 {[%clk 0:01:56]} 27. Nc5 {[%clk 0:01:48]}  Ne8 {[%clk 0:01:52]} 28. e4 {[%clk 0:01:42]}  Kd6 {[%clk 0:01:51]} 29. Ke3 {[%clk 0:01:38]}  Nc7 {[%clk 0:01:49]} 30. e5+ {[%clk 0:01:34]}  Ke7 {[%clk 0:01:35]} 31. f4 {[%clk 0:01:34]}  Ne6 {[%clk 0:00:46]} 32. Nxe6 {[%clk 0:01:31]}  Bxe6 {[%clk 0:00:33]} 33. h5 {[%clk 0:01:23]}  Kd7 {[%clk 0:00:29]} 34. h6 {[%clk 0:01:22]}  Kc6 {[%clk 0:00:29]} 35. Kd2 {[%clk 0:01:19]}  b5 {[%clk 0:00:27]} 36. a3 {[%clk 0:01:12]}  Bf5 {[%clk 0:00:26]} 37. Ke3 {[%clk 0:01:11]}  Kd7 {[%clk 0:00:26]} 38. Kf2 {[%clk 0:01:11]}  Be6 {[%clk 0:00:25]} 39. Kg3 {[%clk 0:01:11]}  Bf5 {[%clk 0:00:25]} 40. Kh4 {[%clk 0:01:11]}  Ke7 {[%clk 0:00:23]} 41. Kg5 {[%clk 0:01:11]}  Bc2 {[%clk 0:00:22]} 42. Bg4 {[%clk 0:01:10]}  Bd3 {[%clk 0:00:17]} 43. Bc8 {[%clk 0:01:09]}  b4 {[%clk 0:00:18]} 44. axb4 {[%clk 0:01:09]}  Bb5 {[%clk 0:00:17]} 45. f5 {[%clk 0:01:05]}  Bc4 {[%clk 0:00:14]} 46. Bb7 {[%clk 0:01:04]}  Ke8 {[%clk 0:00:13]} 47. fxg6 {[%clk 0:00:58]}  fxg6 {[%clk 0:00:13]} 48. Kf6 {[%clk 0:00:58]}  Be2 {[%clk 0:00:09]} 49. Bc6+ {[%clk 0:00:57]}  Kf8 {[%clk 0:00:08]} 50. e6 {[%clk 0:00:58]} 1-0


[Site "https://www.chess.com"]

[Event "Titled Tuesday Blitz September 27 Early 2022"]
[White "Sadilek, Peter"]
[Black "Samunenkov, Ihor"]
[WhiteFideId "1616439"]
[BlackFideId "14187086"]
[WhiteElo "2145"]
[BlackElo "2441"]
[Result "0-1"]
[Round "06"]
[TimeControl "180+1"]
[Date "2022.09.27"]
[WhiteClock "0:00:10"]
[BlackClock "0:00:05"]

1. d4 {[%clk 0:02:59]}  Nf6 {[%clk 0:02:57]} 2. Nf3 {[%clk 0:03:00]}  e6 {[%clk 0:02:58]} 3. Bg5 {[%clk 0:03:00]}  h6 {[%clk 0:02:52]} 4. Bh4 {[%clk 0:02:58]}  c5 {[%clk 0:02:53]} 5. e3 {[%clk 0:02:46]}  d5 {[%clk 0:02:52]} 6. Nbd2 {[%clk 0:02:35]}  Bd6 {[%clk 0:02:51]} 7. dxc5 {[%clk 0:02:29]}  Bxc5 {[%clk 0:02:50]} 8. c4 {[%clk 0:02:30]}  Nc6 {[%clk 0:02:03]} 9. Rc1 {[%clk 0:02:27]}  Be7 {[%clk 0:02:02]} 10. Be2 {[%clk 0:02:17]}  O-O {[%clk 0:01:58]} 11. O-O {[%clk 0:02:17]}  dxc4 {[%clk 0:01:45]} 12. Nxc4 {[%clk 0:02:16]}  Nd5 {[%clk 0:01:46]} 13. Bxe7 {[%clk 0:02:02]}  Qxe7 {[%clk 0:01:45]} 14. a3 {[%clk 0:02:02]}  Rd8 {[%clk 0:01:45]} 15. Qc2 {[%clk 0:02:03]}  Bd7 {[%clk 0:01:34]} 16. Rfd1 {[%clk 0:02:03]}  Be8 {[%clk 0:01:33]} 17. Qe4 {[%clk 0:01:56]}  Rac8 {[%clk 0:01:32]} 18. h3 {[%clk 0:01:56]}  Nf6 {[%clk 0:01:17]} 19. Qb1 {[%clk 0:01:46]}  Rxd1+ {[%clk 0:00:56]} 20. Rxd1 {[%clk 0:01:47]}  Rd8 {[%clk 0:00:55]} 21. b4 {[%clk 0:01:43]}  Nd5 {[%clk 0:00:49]} 22. Qb2 {[%clk 0:01:27]}  a6 {[%clk 0:00:39]} 23. Nd4 {[%clk 0:01:23]}  Nxd4 {[%clk 0:00:37]} 24. Qxd4 {[%clk 0:01:24]}  Rc8 {[%clk 0:00:28]} 25. Nb6 {[%clk 0:00:51]}  Nxb6 {[%clk 0:00:22]} 26. Qxb6 {[%clk 0:00:52]}  Bc6 {[%clk 0:00:22]} 27. Rc1 {[%clk 0:00:32]}  Qg5 {[%clk 0:00:11]} 28. Bf3 {[%clk 0:00:25]}  Bxf3 {[%clk 0:00:04]} 29. Rxc8+ {[%clk 0:00:26]}  Kh7 {[%clk 0:00:04]} 30. g3 {[%clk 0:00:23]}  Qf5 {[%clk 0:00:04]} 31. g4 {[%clk 0:00:12]}  Qb1+ {[%clk 0:00:04]} 32. Kh2 {[%clk 0:00:12]}  Qh1+ {[%clk 0:00:02]} 33. Kg3 {[%clk 0:00:13]}  Qg2+ {[%clk 0:00:03]} 34. Kf4 {[%clk 0:00:13]}  Qxf2 {[%clk 0:00:02]} 35. Ke5 {[%clk 0:00:14]}  Qg3+ {[%clk 0:00:02]} 36. Kd4 {[%clk 0:00:13]}  Bc6 {[%clk 0:00:01]} 37. Qc7 {[%clk 0:00:11]}  Qe1 {[%clk 0:00:01]} 38. Kc5 {[%clk 0:00:11]}  Qxe3+ {[%clk 0:00:01]} 39. Kd6 {[%clk 0:00:12]}  Qf4+ {[%clk 0:00:02]} 40. Ke7 {[%clk 0:00:12]}  Qg5+ {[%clk 0:00:02]} 41. Kf8 {[%clk 0:00:12]}  Qf6 {[%clk 0:00:02]} 42. Qxf7 {[%clk 0:00:12]}  Qd4 {[%clk 0:00:02]} 43. Qg8+ {[%clk 0:00:12]}  Kg6 {[%clk 0:00:02]} 44. Qf7+ {[%clk 0:00:13]}  Kh7 {[%clk 0:00:03]} 45. Ke7 {[%clk 0:00:09]}  Qd7+ {[%clk 0:00:02]} 46. Kf8 {[%clk 0:00:09]}  Qxc8+ {[%clk 0:00:03]} 47. Ke7 {[%clk 0:00:09]}  Qd7+ {[%clk 0:00:03]} 48. Kf8 {[%clk 0:00:09]}  Qxf7+ {[%clk 0:00:04]} 49. Kxf7 {[%clk 0:00:10]}  e5 {[%clk 0:00:05]} 0-1


[Site "https://www.chess.com"]

[Event "Titled Tuesday Blitz September 27 Early 2022"]
[White "Sai Han Thiha"]
[Black "Ravi, Thandalam Shanmugam"]
[WhiteFideId "13012290"]
[BlackFideId "5000238"]
[WhiteElo "1791"]
[BlackElo "2063"]
[Result "1-0"]
[Round "06"]
[TimeControl "180+1"]
[Date "2022.09.27"]
[WhiteClock "0:00:21"]
[BlackClock "0:01:07"]

1. d4 {[%clk 0:03:00]}  Nf6 {[%clk 0:02:59]} 2. c4 {[%clk 0:03:01]}  e6 {[%clk 0:02:56]} 3. Nf3 {[%clk 0:03:01]}  d5 {[%clk 0:02:56]} 4. Nc3 {[%clk 0:03:01]}  c6 {[%clk 0:02:56]} 5. Bg5 {[%clk 0:02:59]}  dxc4 {[%clk 0:02:56]} 6. a4 {[%clk 0:02:51]}  Be7 {[%clk 0:02:29]} 7. e3 {[%clk 0:02:45]}  O-O {[%clk 0:02:29]} 8. Bxc4 {[%clk 0:02:45]}  h6 {[%clk 0:02:28]} 9. Bh4 {[%clk 0:02:44]}  Nd5 {[%clk 0:02:28]} 10. Bg3 {[%clk 0:02:21]}  Nd7 {[%clk 0:02:24]} 11. O-O {[%clk 0:02:19]}  N7b6 {[%clk 0:02:16]} 12. Bd3 {[%clk 0:02:17]}  Nb4 {[%clk 0:02:13]} 13. Bb1 {[%clk 0:01:59]}  c5 {[%clk 0:02:07]} 14. dxc5 {[%clk 0:01:47]}  Bxc5 {[%clk 0:02:07]} 15. Qe2 {[%clk 0:01:47]}  Bd7 {[%clk 0:02:04]} 16. Rd1 {[%clk 0:01:43]}  Qe7 {[%clk 0:02:02]} 17. b3 {[%clk 0:00:59]}  Rac8 {[%clk 0:01:47]} 18. Ne4 {[%clk 0:00:59]}  Rfd8 {[%clk 0:01:40]} 19. Nxc5 {[%clk 0:00:36]}  Qxc5 {[%clk 0:01:32]} 20. Bd6 {[%clk 0:00:36]}  Qc3 {[%clk 0:01:31]} 21. Be5 {[%clk 0:00:36]}  Qxb3 {[%clk 0:01:27]} 22. Nd4 {[%clk 0:00:24]}  Qc4 {[%clk 0:01:23]} 23. Qg4 {[%clk 0:00:22]}  Bxa4 {[%clk 0:01:07]} 24. Qxg7# {[%clk 0:00:21]} 1-0


[Site "https://www.chess.com"]

[Event "Titled Tuesday Blitz September 27 Early 2022"]
[White "Sailer, Mike"]
[Black "Vargas, Mauricio"]
[WhiteFideId "2012901"]
[BlackFideId "4404572"]
[WhiteElo "2109"]
[BlackElo "2004"]
[Result "1-0"]
[Round "06"]
[TimeControl "180+1"]
[Date "2022.09.27"]
[WhiteClock "0:02:38"]
[BlackClock "0:00:05"]

1. d4 {[%clk 0:02:59]}  d6 {[%clk 0:00:03]} 2. Nc3 {[%clk 0:02:55]}  Nf6 {[%clk 0:00:04]} 3. Bg5 {[%clk 0:02:53]}  g6 {[%clk 0:00:05]} 4. e4 {[%clk 0:02:53]}  Bg7 {[%clk 0:00:05]} 5. Qd2 {[%clk 0:02:53]}  h6 {[%clk 0:00:05]} 6. Be3 {[%clk 0:02:53]}  g5 {[%clk 0:00:05]} 7. f3 {[%clk 0:02:51]}  c6 {[%clk 0:00:06]} 8. h4 {[%clk 0:02:48]}  e5 {[%clk 0:00:06]} 9. O-O-O {[%clk 0:02:44]}  gxh4 {[%clk 0:00:05]} 10. dxe5 {[%clk 0:02:40]}  dxe5 {[%clk 0:00:05]} 11. Qxd8# {[%clk 0:02:38]} 1-0


[Site "https://www.chess.com"]

[Event "Titled Tuesday Blitz September 27 Early 2022"]
[White "Schill, William"]
[Black "Lorenzo De La Riva, Lazaro"]
[WhiteFideId "2016710"]
[BlackFideId "2268809"]
[WhiteElo "1950"]
[BlackElo "2325"]
[Result "0-1"]
[Round "06"]
[TimeControl "180+1"]
[Date "2022.09.27"]
[WhiteClock "0:00:01"]
[BlackClock "0:01:22"]

1. e4 {[%clk 0:03:00]}  c5 {[%clk 0:02:59]} 2. Nf3 {[%clk 0:03:00]}  e6 {[%clk 0:02:56]} 3. d4 {[%clk 0:02:52]}  cxd4 {[%clk 0:02:56]} 4. Nxd4 {[%clk 0:02:52]}  Nc6 {[%clk 0:02:57]} 5. Nc3 {[%clk 0:02:49]}  Nf6 {[%clk 0:02:57]} 6. Nxc6 {[%clk 0:02:44]}  bxc6 {[%clk 0:02:56]} 7. e5 {[%clk 0:02:44]}  Nd5 {[%clk 0:02:56]} 8. Ne4 {[%clk 0:02:37]}  Qc7 {[%clk 0:02:55]} 9. f4 {[%clk 0:02:36]}  Qb6 {[%clk 0:02:55]} 10. c4 {[%clk 0:02:34]}  Ne3 {[%clk 0:02:50]} 11. Qd3 {[%clk 0:01:51]}  Nf5 {[%clk 0:02:47]} 12. a3 {[%clk 0:00:41]}  a5 {[%clk 0:02:29]} 13. b3 {[%clk 0:00:26]}  Nd4 {[%clk 0:02:26]} 14. Rb1 {[%clk 0:00:24]}  Bb7 {[%clk 0:02:09]} 15. Be2 {[%clk 0:00:20]}  c5 {[%clk 0:02:06]} 16. Be3 {[%clk 0:00:09]}  Nc2+ {[%clk 0:02:02]} 17. Qxc2 {[%clk 0:00:08]}  Qc6 {[%clk 0:02:01]} 18. Bf3 {[%clk 0:00:07]}  Qc7 {[%clk 0:01:38]} 19. O-O {[%clk 0:00:07]}  Be7 {[%clk 0:01:32]} 20. Rbd1 {[%clk 0:00:06]}  f5 {[%clk 0:01:30]} 21. Nd6+ {[%clk 0:00:06]}  Bxd6 {[%clk 0:01:28]} 22. exd6 {[%clk 0:00:07]}  Qc8 {[%clk 0:01:28]} 23. Bxb7 {[%clk 0:00:05]}  Qxb7 {[%clk 0:01:29]} 24. Bxc5 {[%clk 0:00:05]}  Qc6 {[%clk 0:01:29]} 25. b4 {[%clk 0:00:05]}  axb4 {[%clk 0:01:29]} 26. axb4 {[%clk 0:00:05]}  O-O {[%clk 0:01:29]} 27. Ra1 {[%clk 0:00:05]}  Rac8 {[%clk 0:01:27]} 28. Qc3 {[%clk 0:00:04]}  Qe4 {[%clk 0:01:24]} 29. Rae1 {[%clk 0:00:01]}  Qb7 {[%clk 0:01:22]} 0-1


[Site "https://www.chess.com"]

[Event "Titled Tuesday Blitz September 27 Early 2022"]
[White "Sovetbekova, Nurai"]
[Black "Runets, Ivan"]
[WhiteFideId "13801910"]
[BlackFideId "13511564"]
[WhiteElo "1646"]
[BlackElo "1962"]
[Result "0-1"]
[Round "06"]
[TimeControl "180+1"]
[Date "2022.09.27"]
[WhiteClock "0:00:07"]
[BlackClock "0:00:06"]

1. d4 {[%clk 0:03:00]}  Nf6 {[%clk 0:02:58]} 2. c4 {[%clk 0:02:59]}  e6 {[%clk 0:02:58]} 3. g3 {[%clk 0:02:58]}  d5 {[%clk 0:02:57]} 4. Bg2 {[%clk 0:02:58]}  Be7 {[%clk 0:02:57]} 5. Nf3 {[%clk 0:02:58]}  O-O {[%clk 0:02:57]} 6. O-O {[%clk 0:02:59]}  dxc4 {[%clk 0:02:57]} 7. Ne5 {[%clk 0:02:45]}  Qd6 {[%clk 0:02:53]} 8. Nxc4 {[%clk 0:02:40]}  Qa6 {[%clk 0:02:52]} 9. Qc2 {[%clk 0:02:33]}  Rd8 {[%clk 0:02:35]} 10. Rd1 {[%clk 0:02:30]}  Nc6 {[%clk 0:02:31]} 11. e3 {[%clk 0:02:28]}  Nb4 {[%clk 0:02:30]} 12. Qb3 {[%clk 0:02:26]}  c5 {[%clk 0:02:20]} 13. Nc3 {[%clk 0:02:21]}  cxd4 {[%clk 0:02:12]} 14. exd4 {[%clk 0:02:20]}  Nbd5 {[%clk 0:02:06]} 15. Bg5 {[%clk 0:02:05]}  Rb8 {[%clk 0:01:30]} 16. Nxd5 {[%clk 0:01:49]}  Nxd5 {[%clk 0:01:29]} 17. Bxe7 {[%clk 0:01:45]}  Nxe7 {[%clk 0:01:28]} 18. Ne5 {[%clk 0:01:45]}  Bd7 {[%clk 0:01:17]} 19. Nxd7 {[%clk 0:01:43]}  Rxd7 {[%clk 0:01:17]} 20. d5 {[%clk 0:01:36]}  exd5 {[%clk 0:01:15]} 21. Bxd5 {[%clk 0:01:35]}  Nxd5 {[%clk 0:01:07]} 22. Rxd5 {[%clk 0:01:35]}  Rbd8 {[%clk 0:01:04]} 23. Rad1 {[%clk 0:01:29]}  Qe6 {[%clk 0:00:47]} 24. Rxd7 {[%clk 0:01:19]}  Rxd7 {[%clk 0:00:47]} 25. Rxd7 {[%clk 0:01:17]}  Qxd7 {[%clk 0:00:48]} 26. Qc2 {[%clk 0:01:13]}  g6 {[%clk 0:00:47]} 27. h4 {[%clk 0:01:13]}  h5 {[%clk 0:00:47]} 28. Kg2 {[%clk 0:01:11]}  a5 {[%clk 0:00:46]} 29. a4 {[%clk 0:01:06]}  b6 {[%clk 0:00:41]} 30. b3 {[%clk 0:01:05]}  Qe6 {[%clk 0:00:39]} 31. Qc3 {[%clk 0:00:59]}  Qd5+ {[%clk 0:00:38]} 32. Qf3 {[%clk 0:00:52]}  Qd4 {[%clk 0:00:32]} 33. Qa8+ {[%clk 0:00:49]}  Kg7 {[%clk 0:00:32]} 34. Qb7 {[%clk 0:00:48]}  Kf6 {[%clk 0:00:30]} 35. Kf3 {[%clk 0:00:44]}  Qd3+ {[%clk 0:00:25]} 36. Kg2 {[%clk 0:00:43]}  Qxb3 {[%clk 0:00:25]} 37. Qc6+ {[%clk 0:00:42]}  Kg7 {[%clk 0:00:23]} 38. Qd7 {[%clk 0:00:41]}  Qb4 {[%clk 0:00:22]} 39. Qc6 {[%clk 0:00:39]}  Qd4 {[%clk 0:00:21]} 40. Qb5 {[%clk 0:00:36]}  Kf8 {[%clk 0:00:19]} 41. Qc6 {[%clk 0:00:34]}  Ke7 {[%clk 0:00:19]} 42. Qc7+ {[%clk 0:00:34]}  Ke6 {[%clk 0:00:19]} 43. Qc6+ {[%clk 0:00:33]}  Qd6 {[%clk 0:00:20]} 44. Qe8+ {[%clk 0:00:29]}  Kf6 {[%clk 0:00:18]} 45. Qh8+ {[%clk 0:00:26]}  Kf5 {[%clk 0:00:16]} 46. Qc8+ {[%clk 0:00:25]}  Ke5 {[%clk 0:00:13]} 47. Qe8+ {[%clk 0:00:22]}  Qe6 {[%clk 0:00:09]} 48. Qb8+ {[%clk 0:00:22]}  Kd4 {[%clk 0:00:09]} 49. Qc7 {[%clk 0:00:16]}  Qd5+ {[%clk 0:00:06]} 50. Kh2 {[%clk 0:00:16]}  Qe6 {[%clk 0:00:06]} 51. Qd8+ {[%clk 0:00:14]}  Kc4 {[%clk 0:00:06]} 52. Qc7+ {[%clk 0:00:14]}  Kb4 {[%clk 0:00:06]} 53. Qc2 {[%clk 0:00:13]}  Qb3 {[%clk 0:00:06]} 54. Qe4+ {[%clk 0:00:13]}  Ka3 {[%clk 0:00:06]} 55. Qf4 {[%clk 0:00:10]}  f5 {[%clk 0:00:04]} 56. Qd6+ {[%clk 0:00:10]}  Kxa4 {[%clk 0:00:04]} 57. Qf4+ {[%clk 0:00:09]}  Ka3 {[%clk 0:00:04]} 58. Qg5 {[%clk 0:00:10]}  Qf3 {[%clk 0:00:04]} 59. Qxg6 {[%clk 0:00:09]}  Qxf2+ {[%clk 0:00:04]} 60. Kh3 {[%clk 0:00:10]}  Qf1+ {[%clk 0:00:04]} 61. Kh2 {[%clk 0:00:10]}  Qe2+ {[%clk 0:00:05]} 62. Kh1 {[%clk 0:00:10]}  Qf3+ {[%clk 0:00:05]} 63. Kh2 {[%clk 0:00:11]}  b5 {[%clk 0:00:06]} 64. Qd6+ {[%clk 0:00:10]}  b4 {[%clk 0:00:05]} 65. Qc5 {[%clk 0:00:10]}  a4 {[%clk 0:00:05]} 66. Qc1+ {[%clk 0:00:09]}  Ka2 {[%clk 0:00:04]} 67. Qc2+ {[%clk 0:00:09]}  Ka3 {[%clk 0:00:05]} 68. Qc1+ {[%clk 0:00:10]}  Kb3 {[%clk 0:00:05]} 69. Qb1+ {[%clk 0:00:10]}  Kc4 {[%clk 0:00:06]} 70. Qc2+ {[%clk 0:00:09]}  Kb5 {[%clk 0:00:05]} 71. Qc7 {[%clk 0:00:07]}  a3 {[%clk 0:00:05]} 72. Qb8+ {[%clk 0:00:07]}  Ka4 {[%clk 0:00:05]} 73. Qa7+ {[%clk 0:00:07]}  Kb3 {[%clk 0:00:05]} 74. Qf7+ {[%clk 0:00:08]}  Kb2 {[%clk 0:00:05]} 75. Qf6+ {[%clk 0:00:08]}  Qc3 {[%clk 0:00:05]} 76. Qxf5 {[%clk 0:00:06]}  a2 {[%clk 0:00:06]} 77. Qf2+ {[%clk 0:00:07]}  Qc2 {[%clk 0:00:06]} 0-1


[Site "https://www.chess.com"]